bitfinex/quotes_BTCUSD_20251110
["timestamp","ask_amount","ask_price","bid_price","bid_amount"]
[1762740851257,1.27727652,105820.0,105810.0,0.00223473]
[1762740854545,0.86241989,105820.0,105810.0,0.00223473]
[1762740854759,0.69364189,105820.0,105810.0,0.00223473]
[1762740854932,1.01222068,105820.0,105810.0,0.00223473]
[1762740855334,1.01222068,105820.0,105810.0,0.03617511]
[1762740855610,1.01222068,105820.0,105810.0,0.00223473]
[1762740856335,1.01222068,105820.0,105810.0,0.03617511]
[1762740856736,0.22520033,105810.0,105800.0,0.05091453]
[1762740856884,0.59497912,105810.0,105800.0,0.03395116]
[1762740857286,0.62336118,105810.0,105800.0,0.03395116]
[1762740857485,0.62336118,105810.0,105800.0,0.03418591]
[1762740858131,0.62536118,105810.0,105800.0,0.03418591]
[1762740858348,0.30478239,105810.0,105800.0,0.03418591]
[1762740858544,0.62336118,105810.0,105800.0,0.03418591]
[1762740858686,0.62636118,105810.0,105800.0,0.03418591]
[1762740858888,0.63636118,105810.0,105800.0,0.03418591]
[1762740859306,0.62636118,105810.0,105800.0,0.08510044]
[1762740859516,0.62636118,105810.0,105800.0,0.03418591]
[1762740859695,0.63836118,105810.0,105800.0,0.03418591]
[1762740859894,0.63836118,105810.0,105800.0,0.00023475]
[1762740860105,0.66473674,105810.0,105800.0,0.00023475]
[1762740860324,0.68061713,105810.0,105800.0,0.00023475]
[1762740862764,0.36203834,105810.0,105800.0,0.00023475]
[1762740863129,0.015,105810.0,105800.0,0.55876398]
[1762740863559,0.015,105810.0,105800.0,0.55923656]
[1762740863897,0.55675255,105830.0,105810.0,0.18900332]
[1762740864156,0.29321427,105830.0,105810.0,0.50805465]
[1762740864312,0.29321427,105830.0,105810.0,0.18947586]
[1762740864313,0.03618228,105820.0,105810.0,0.18947586]
[1762740865488,0.03618228,105820.0,105810.0,0.50805465]
[1762740866086,0.03818228,105820.0,105810.0,0.50805465]
[1762740866287,0.03818228,105820.0,105810.0,0.18947586]
[1762740866580,0.03918228,105820.0,105810.0,0.51505465]
[1762740867616,0.22818246,105820.0,105810.0,0.51505465]
[1762740867825,0.03918228,105820.0,105810.0,0.51458211]
[1762740867995,0.03918228,105820.0,105810.0,0.51505465]
[1762740868804,0.03918228,105820.0,105810.0,0.8331609]
[1762740868969,0.03918228,105820.0,105810.0,0.51505465]
[1762740869585,0.22818246,105820.0,105810.0,0.51505465]
[1762740869870,0.03918228,105820.0,105810.0,0.51458211]
[1762740870016,0.03918228,105820.0,105810.0,0.51505465]
[1762740870422,0.22818246,105820.0,105810.0,0.51506938]
[1762740870604,0.22818246,105820.0,105810.0,0.51459684]
[1762740871225,0.03918228,105820.0,105810.0,0.51459684]
[1762740871469,0.03918228,105820.0,105810.0,0.51506938]
[1762740872151,0.22818246,105820.0,105810.0,0.51506938]
[1762740872333,0.22818246,105820.0,105810.0,0.51459684]
[1762740872503,0.03918228,105820.0,105810.0,0.51459684]
[1762740872705,0.003,105820.0,105810.0,0.51506938]
[1762740873026,0.003,105820.0,105810.0,0.8845627]
[1762740876966,0.003,105820.0,105810.0,0.83364817]
[1762740878291,0.003,105820.0,105810.0,0.83317563]
[1762740878872,0.003,105820.0,105810.0,0.83364817]
[1762740879603,0.003,105820.0,105810.0,0.88409016]
[1762740880195,0.00248937,105820.0,105810.0,0.83364817]
[1762740880784,0.00248937,105820.0,105810.0,0.93127736]
[1762740881598,0.00248937,105820.0,105810.0,0.98219189]
[1762740882100,0.00248937,105820.0,105810.0,0.98266443]
[1762740882681,0.00248937,105820.0,105810.0,0.98219189]
[1762740882895,0.00148937,105820.0,105810.0,0.97566443]
[1762740883110,9.111e-05,105830.0,105820.0,0.18900018]
[1762740883344,9.111e-05,105830.0,105820.0,0.6576877]
[1762740883568,9.111e-05,105830.0,105820.0,0.6581602]
[1762740884433,0.00409111,105830.0,105820.0,0.6751602]
[1762740884878,0.22096344,105830.0,105820.0,0.0174725]
[1762740885103,0.28010572,105830.0,105820.0,0.017]
[1762740886193,0.27710572,105830.0,105820.0,0.016]
[1762740886405,0.18900018,105820.0,105810.0,0.50806907]
[1762740886659,0.18900018,105820.0,105810.0,0.50759653]
[1762740887408,0.18900018,105820.0,105810.0,0.32457879]
[1762740887610,0.19200018,105820.0,105810.0,0.51359684]
[1762740887803,0.19300018,105820.0,105810.0,0.52759684]
[1762740889457,0.22073018,105820.0,105810.0,0.33857879]
[1762740889927,0.22073018,105820.0,105810.0,0.52759684]
[1762740890107,0.22073018,105820.0,105810.0,0.33857879]
[1762740890253,0.24358018,105820.0,105810.0,0.33857879]
[1762740892036,0.27976246,105820.0,105810.0,0.52759684]
[1762740892408,0.06791228,105820.0,105810.0,0.57898391]
[1762740892961,0.24109246,105820.0,105810.0,0.57898391]
[1762740893199,0.24109246,105820.0,105810.0,0.57851137]
[1762740893406,0.05209228,105820.0,105810.0,0.57851137]
[1762740893619,0.24109246,105820.0,105810.0,0.57898391]
[1762740893804,0.24109246,105820.0,105810.0,0.57851137]
[1762740894798,0.24109246,105820.0,105810.0,0.57898391]
[1762740895017,0.59402425,105860.0,105810.0,0.57898391]
[1762740895018,0.07122396,105870.0,105840.0,0.00944822]
[1762740895247,0.02651998,105870.0,105860.0,0.50750756]
[1762740896330,0.02071038,105870.0,105860.0,0.50750756]
[1762740896551,0.02071038,105870.0,105860.0,0.51050756]
[1762740896785,0.01771038,105870.0,105860.0,0.50797988]
[1762740896992,0.01971038,105870.0,105860.0,0.19440109]
[1762740897207,0.01971038,105870.0,105860.0,0.49563407]
[1762740898132,0.01971038,105870.0,105860.0,0.57028481]
[1762740898603,0.00209118,105870.0,105860.0,0.57028481]
[1762740899350,0.00209118,105870.0,105860.0,0.49563407]
[1762740900316,0.00209118,105870.0,105860.0,0.19392877]
[1762740900476,0.00209118,105870.0,105860.0,0.49563407]
[1762740902789,0.23606528,105870.0,105860.0,0.00547232]
[1762740902999,0.25890528,105870.0,105860.0,0.19392877]
[1762740903843,0.25890528,105870.0,105860.0,0.005]
[1762740904080,0.25890528,105870.0,105860.0,0.19392877]
[1762740905394,0.25890528,105870.0,105860.0,0.005]
[1762740905608,0.66435256,105870.0,105860.0,0.005]
[1762740905839,0.67314097,105870.0,105860.0,0.005]
[1762740907684,0.18894662,105850.0,105840.0,0.00047241]
[1762740907887,0.18896447,105840.0,105830.0,0.55209967]
[1762740908063,0.2630389,105850.0,105840.0,0.18896447]
[1762740908263,0.2479689,105850.0,105840.0,0.18896447]
[1762740908506,0.2630389,105850.0,105840.0,0.18896447]
[1762740909152,0.18896447,105840.0,105830.0,0.56809967]
[1762740909325,0.2630389,105850.0,105840.0,0.19696447]
[1762740909512,0.2479689,105850.0,105840.0,0.008]
[1762740909712,0.2630389,105850.0,105840.0,0.022]
[1762740909895,0.2650389,105850.0,105840.0,0.022]
[1762740910100,0.2774489,105850.0,105840.0,0.21096447]
[1762740910300,0.08850228,105850.0,105840.0,0.21096447]
[1762740910506,0.002,105850.0,105840.0,0.51219745]
[1762740911339,0.002,105850.0,105840.0,0.90346068]
[1762740912363,9.118e-05,105870.0,105860.0,0.18892877]
[1762740912517,9.118e-05,105870.0,105860.0,0.54264107]
[1762740912719,0.01766473,105870.0,105860.0,0.54264107]
[1762740913737,0.01766473,105870.0,105860.0,0.54216875]
[1762740914184,0.02266473,105870.0,105860.0,0.61632591]
[1762740914395,0.02266473,105870.0,105860.0,0.61679823]
[1762740914565,0.02266473,105870.0,105860.0,0.31556525]
[1762740914743,0.02266473,105870.0,105860.0,0.61679823]
[1762740915591,0.02266473,105870.0,105860.0,0.54364107]
[1762740916214,0.22398565,105870.0,105860.0,0.49116175]
[1762740916399,0.05014473,105870.0,105860.0,0.49116175]
[1762740916607,0.03507473,105870.0,105860.0,0.49116175]
[1762740916761,0.02266473,105870.0,105860.0,0.49116175]
[1762740916960,0.00509118,105870.0,105860.0,0.70435736]
[1762740917187,0.00509118,105870.0,105860.0,0.73818755]
[1762740917753,9.118e-05,105870.0,105860.0,1.06065987]
[1762740918199,0.00109118,105870.0,105860.0,1.07718755]
[1762740918403,0.00109118,105870.0,105860.0,1.08734157]
[1762740918610,9.118e-05,105870.0,105860.0,1.07834157]
[1762740918787,9.118e-05,105870.0,105860.0,1.08834157]
[1762740918994,9.118e-05,105870.0,105860.0,1.08881389]
[1762740919201,9.118e-05,105870.0,105860.0,1.08834157]
[1762740919604,0.00243887,105880.0,105870.0,0.18891092]
[1762740919803,0.02001136,105880.0,105870.0,0.7891767]
[1762740920138,0.02001136,105880.0,105870.0,0.78964897]
[1762740920279,0.02001136,105880.0,105870.0,0.75581878]
[1762740920694,0.02101136,105880.0,105870.0,0.76681878]
[1762740921201,0.00343887,105880.0,105870.0,0.77681878]
[1762740921847,0.00343887,105880.0,105870.0,0.81064897]
[1762740922041,0.00343887,105880.0,105870.0,0.77681878]
[1762740922397,0.00343887,105880.0,105870.0,0.81064897]
[1762740922635,0.00343887,105880.0,105870.0,0.77681878]
[1762740923073,0.00343887,105880.0,105870.0,0.81064897]
[1762740923226,0.00343887,105880.0,105870.0,0.95754897]
[1762740923626,0.02102488,105880.0,105870.0,0.95754897]
[1762740923830,0.02102488,105880.0,105870.0,0.9829778]
[1762740925378,0.02102488,105880.0,105870.0,0.94914761]
[1762740925530,0.02102488,105880.0,105870.0,0.82561705]
[1762740926488,0.20991796,105880.0,105870.0,0.26239019]
[1762740926631,0.25732164,105880.0,105870.0,0.021]
[1762740926832,0.30317334,105880.0,105870.0,0.021]
[1762740927262,0.29350392,105880.0,105870.0,0.021]
[1762740927468,0.29350392,105880.0,105860.0,0.18892841]
[1762740927658,0.23944092,105870.0,105860.0,0.18892841]
[1762740927895,0.25702693,105870.0,105860.0,0.18892841]
[1762740928311,0.23447693,105870.0,105860.0,0.18892841]
[1762740929006,0.18892877,105860.0,105850.0,0.69261289]
[1762740929190,0.25702693,105870.0,105860.0,0.18892877]
[1762740929191,0.23944092,105870.0,105860.0,0.18892877]
[1762740929389,0.24097413,105870.0,105860.0,0.18992877]
[1762740929601,0.25703413,105870.0,105860.0,0.18992877]
[1762740929810,0.25703413,105870.0,105860.0,0.19692877]
[1762740931177,0.25803413,105870.0,105860.0,0.19892877]
[1762740932275,0.25703413,105870.0,105860.0,0.18892877]
[1762740932500,0.23948413,105870.0,105860.0,0.18992877]
[1762740932941,0.26203413,105870.0,105860.0,0.18992877]
[1762740933601,0.26203413,105870.0,105860.0,0.001]
[1762740933812,0.38991571,105870.0,105860.0,0.001]
[1762740935907,0.66301641,105870.0,105860.0,0.001]
[1762740936317,0.67181123,105870.0,105860.0,0.001]
[1762740936993,0.22511105,105860.0,105850.0,0.18903738]
[1762740937201,0.28131426,105860.0,105850.0,0.18903738]
[1762740939803,0.28431426,105860.0,105850.0,0.00109118]
[1762740940020,0.29623426,105860.0,105850.0,0.00109118]
[1762740940369,0.29623426,105860.0,105850.0,0.1900378]
[1762740941393,0.10730549,105860.0,105850.0,0.1900378]
[1762740941657,0.29623426,105860.0,105850.0,0.1900378]
[1762740941856,0.29623426,105860.0,105850.0,0.00109118]
[1762740941984,0.29623426,105860.0,105850.0,0.1900378]
[1762740944015,0.10730549,105860.0,105850.0,0.1900378]
[1762740944233,0.29623426,105860.0,105850.0,0.1900378]
[1762740944435,0.29623426,105860.0,105850.0,0.00109118]
[1762740944639,0.33807426,105860.0,105850.0,0.00109118]
[1762740944805,0.33807426,105860.0,105850.0,0.1900378]
[1762740946418,0.14914549,105860.0,105850.0,0.1900378]
[1762740946613,0.08475549,105860.0,105850.0,0.68938519]
[1762740946909,0.06243321,105860.0,105850.0,0.60636466]
[1762740947052,0.02059321,105860.0,105850.0,0.60636466]
[1762740947252,0.003,105860.0,105850.0,0.69130054]
[1762740947694,0.003,105860.0,105850.0,0.65733991]
[1762740948249,0.003,105860.0,105850.0,0.6911701]
[1762740948822,0.003,105860.0,105850.0,0.65733991]
[1762740948965,0.19192877,105860.0,105850.0,0.65733991]
[1762740949144,0.003,105860.0,105850.0,0.65733991]
[1762740949798,0.20405877,105860.0,105850.0,0.05206643]
[1762740950025,0.24341877,105860.0,105850.0,0.08597365]
[1762740950409,0.24341877,105860.0,105850.0,0.13798065]
[1762740950618,0.27960105,105860.0,105850.0,0.0604315]
[1762740951026,0.60260105,105860.0,105850.0,0.02652428]
[1762740951398,0.60260105,105860.0,105850.0,0.00109118]
[1762740951604,0.62019373,105860.0,105850.0,0.00109118]
[1762740952412,0.61719373,105860.0,105850.0,9.118e-05]
[1762740952814,0.63519373,105860.0,105850.0,0.00209118]
[1762740955443,0.6352028,105860.0,105850.0,0.00209118]
[1762740959344,0.6352028,105860.0,105850.0,1e-08]
[1762740959345,2.24855476,105860.0,105850.0,1e-08]
[1762740960029,1.87843076,105860.0,105850.0,1e-08]
[1762740960230,0.22516461,105830.0,105820.0,0.05934932]
[1762740960440,0.31957461,105830.0,105820.0,0.05949399]
[1762740961401,0.32157461,105830.0,105820.0,0.03758677]
[1762740961747,0.32157461,105830.0,105820.0,0.07949399]
[1762740961891,0.32157461,105830.0,105820.0,0.04558677]
[1762740962098,0.32157461,105830.0,105820.0,0.23458695]
[1762740962294,0.32157461,105830.0,105820.0,0.26849417]
[1762740962808,0.32157461,105830.0,105820.0,0.07949399]
[1762740963007,0.32157461,105830.0,105820.0,0.26849417]
[1762740963655,0.32157461,105830.0,105820.0,0.07949399]
[1762740963862,0.37378813,105830.0,105820.0,0.07949399]
[1762740964558,0.64457461,105830.0,105820.0,0.04558677]
[1762740964756,0.64457461,105830.0,105820.0,0.02014467]
[1762740966280,0.64257461,105830.0,105820.0,0.00814467]
[1762740966490,0.65557461,105830.0,105820.0,0.00014467]
[1762740966657,0.66157461,105830.0,105820.0,0.00014467]
[1762740972340,0.67915843,105830.0,105820.0,0.00014467]
[1762740977158,0.67915825,105830.0,105820.0,0.00014467]
[1762740980853,0.9976657,105830.0,105820.0,0.00014467]
[1762740981065,0.67915825,105830.0,105820.0,0.00014467]
[1762740983326,0.9976657,105830.0,105820.0,0.00014467]
[1762740983749,0.67915825,105830.0,105820.0,0.00014467]
[1762740984993,0.63731825,105830.0,105820.0,0.00014467]
[1762740985193,0.67915825,105830.0,105820.0,0.00014467]
[1762740986929,2.12616331,105830.0,105820.0,0.00014467]
[1762740987142,2.12616331,105830.0,105800.0,0.00023475]
[1762740987143,0.54820033,105810.0,105800.0,0.00023475]
[1762740987340,0.63416397,105810.0,105800.0,0.00044611]
[1762740987546,0.65673397,105810.0,105800.0,0.00044611]
[1762740988002,0.97524142,105810.0,105800.0,0.00044611]
[1762740988583,0.65673397,105810.0,105800.0,0.00044611]
[1762740989177,0.67673397,105810.0,105800.0,0.00044611]
[1762740989374,0.99524142,105810.0,105800.0,0.00044611]
[1762740990226,0.67673397,105810.0,105800.0,0.00044611]
[1762740992131,0.04654,105810.0,105800.0,0.53343157]
[1762740992245,0.03126,105810.0,105800.0,0.54189669]
[1762740992449,0.06184,105810.0,105800.0,0.59287194]
[1762740992649,0.04784,105810.0,105800.0,0.59287194]
[1762740992864,0.04744228,105820.0,105810.0,0.18901805]
[1762740993066,0.07567,105820.0,105810.0,0.54991178]
[1762740993272,0.07567,105820.0,105810.0,0.60926302]
[1762740993273,0.27995018,105820.0,105810.0,0.60926302]
[1762740993474,0.31613246,105820.0,105810.0,0.57543283]
[1762740993679,0.29356246,105820.0,105810.0,0.57543283]
[1762740993937,0.10456228,105820.0,105810.0,0.57543283]
[1762740994347,0.10456228,105820.0,105810.0,0.65885037]
[1762740994577,0.08928228,105820.0,105810.0,0.57543283]
[1762740994727,0.55558144,105830.0,105820.0,0.18900018]
[1762740994935,0.6512203,105830.0,105820.0,0.21445368]
[1762740995135,0.6246603,105830.0,105820.0,0.21445368]
[1762740995721,0.6835003,105830.0,105820.0,0.2493609]
[1762740995919,0.6895003,105830.0,105820.0,0.2493609]
[1762740996120,0.10861228,105830.0,105820.0,0.63002911]
[1762740996322,0.12788228,105830.0,105820.0,0.55089321]
[1762740996669,0.31686461,105830.0,105820.0,0.06036072]
[1762740996866,0.12788228,105830.0,105820.0,0.55089321]
[1762740997027,0.29986461,105830.0,105820.0,0.54989321]
[1762740997239,0.32243461,105830.0,105820.0,0.05936072]
[1762740997411,0.33143461,105830.0,105820.0,0.06036072]
[1762740997614,0.38463413,105830.0,105820.0,0.2493609]
[1762740997917,0.32143461,105830.0,105820.0,0.2483609]
[1762740998072,0.13245228,105830.0,105820.0,0.2483609]
[1762740998298,0.14045228,105830.0,105820.0,0.2493609]
[1762740998499,0.33243461,105830.0,105820.0,0.2493609]
[1762740999321,0.30986461,105830.0,105820.0,0.2493609]
[1762740999918,0.33243461,105830.0,105820.0,0.2493609]
[1762741000220,0.33243461,105830.0,105820.0,0.06036072]
[1762741000441,0.33243461,105830.0,105820.0,0.2493609]
[1762741000604,0.14345228,105830.0,105820.0,0.2493609]
[1762741001265,0.12088228,105830.0,105820.0,0.2493609]
[1762741001408,0.12088228,105830.0,105820.0,0.55089321]
[1762741001607,0.30986461,105830.0,105820.0,0.55136571]
[1762741001809,0.12088228,105830.0,105820.0,0.2493609]
[1762741002528,0.33243461,105830.0,105820.0,0.55089321]
[1762741002864,0.29059461,105830.0,105820.0,0.55089321]
[1762741003187,0.33243461,105830.0,105820.0,0.55089321]
[1762741003489,0.33243461,105830.0,105820.0,0.2493609]
[1762741003704,0.29059461,105830.0,105820.0,0.2493609]
[1762741003851,0.10161228,105830.0,105820.0,0.2493609]
[1762741004203,0.29458461,105830.0,105820.0,0.2493609]
[1762741004406,0.30986461,105830.0,105820.0,0.06036072]
[1762741004568,0.30986461,105830.0,105820.0,0.36189303]
[1762741004769,0.33243461,105830.0,105820.0,0.55089321]
[1762741004969,0.33243461,105830.0,105820.0,0.2493609]
[1762741005171,0.33243461,105830.0,105820.0,0.06036072]
[1762741005372,0.33243461,105830.0,105820.0,0.2493609]
[1762741005573,0.33243461,105830.0,105820.0,0.06036072]
[1762741005749,0.38573413,105830.0,105820.0,0.06036072]
[1762741005958,0.70873413,105830.0,105820.0,0.0264535]
[1762741006584,0.65543461,105830.0,105820.0,0.0264535]
[1762741011203,0.65543461,105830.0,105820.0,0.21545368]
[1762741012884,0.016,105830.0,105820.0,0.56765716]
[1762741013064,0.016,105830.0,105820.0,0.61966416]
[1762741013478,0.016,105830.0,105820.0,0.64518591]
[1762741013790,0.016,105830.0,105820.0,1.10481265]
[1762741014000,0.01206,105870.0,105840.0,0.052007]
[1762741014176,0.01206,105870.0,105860.0,0.55923203]
[1762741014379,0.2418727,105880.0,105870.0,0.18891092]
[1762741014380,0.0004,105880.0,105870.0,0.18891092]
[1762741014583,0.01800295,105880.0,105870.0,0.63659252]
[1762741014802,0.01800295,105880.0,105870.0,0.37030326]
[1762741015022,0.01800295,105880.0,105870.0,0.55921418]
[1762741015197,0.01809411,105880.0,105870.0,0.55921418]
[1762741015399,0.24576719,105880.0,105860.0,0.31876858]
[1762741015608,0.20478092,105870.0,105860.0,0.31876858]
[1762741015811,0.24529387,105870.0,105860.0,0.31829626]
[1762741016209,0.24629387,105870.0,105860.0,0.32376858]
[1762741016408,0.22338387,105870.0,105860.0,0.32329626]
[1762741016630,0.20578092,105870.0,105860.0,0.32329626]
[1762741017233,0.18991092,105870.0,105860.0,0.32329626]
[1762741017661,0.18991092,105870.0,105860.0,0.32929626]
[1762741018649,0.20578092,105870.0,105860.0,0.32929626]
[1762741018816,0.22337476,105870.0,105860.0,0.32929626]
[1762741019895,0.2962527,105870.0,105860.0,0.011]
[1762741020067,0.65073124,105870.0,105860.0,0.011]
[1762741020583,0.01859384,105870.0,105860.0,0.19992877]
[1762741020795,0.001,105870.0,105860.0,0.57070435]
[1762741021011,0.001,105870.0,105860.0,0.57023203]
[1762741021216,0.001,105870.0,105860.0,0.57070435]
[1762741021994,0.18991092,105870.0,105860.0,0.57070435]
[1762741022311,0.01861504,105870.0,105860.0,0.57070435]
[1762741022857,0.01861504,105870.0,105860.0,0.25240809]
[1762741023736,0.01861504,105870.0,105860.0,0.25193577]
[1762741023934,0.01861504,105870.0,105860.0,0.25240809]
[1762741024134,0.01861504,105870.0,105860.0,0.2834191]
[1762741024342,0.22832592,105870.0,105860.0,0.25240809]
[1762741024628,0.0383634,105870.0,105860.0,0.25193577]
[1762741024835,0.20647436,105870.0,105860.0,0.25240809]
[1762741025039,0.20647436,105870.0,105860.0,0.25193577]
[1762741025198,0.01756344,105870.0,105860.0,0.25193577]
[1762741025387,0.01756344,105870.0,105860.0,0.25240809]
[1762741025613,0.01756344,105870.0,105860.0,0.25193577]
[1762741026234,0.01756344,105870.0,105860.0,0.55318044]
[1762741026443,0.00049116,105880.0,105870.0,0.18891092]
[1762741026660,0.00049116,105880.0,105870.0,0.2203942]
[1762741027758,0.00049116,105880.0,105870.0,0.2263942]
[1762741028175,0.00149116,105880.0,105870.0,0.2313942]
[1762741030153,0.19038424,105880.0,105870.0,0.2313942]
[1762741030353,0.19038424,105880.0,105870.0,0.04201101]
[1762741030630,0.19038424,105880.0,105870.0,0.23092193]
[1762741030830,0.19038424,105880.0,105870.0,0.19991092]
[1762741032836,0.00149116,105880.0,105870.0,0.19991092]
[1762741033072,0.19038424,105880.0,105870.0,0.20038319]
[1762741033236,0.22857786,105880.0,105870.0,0.19991092]
[1762741034588,0.19038424,105880.0,105870.0,0.19991092]
[1762741034999,0.00149116,105880.0,105870.0,0.19991092]
[1762741035171,0.19038424,105880.0,105870.0,0.20038319]
[1762741035380,0.19038424,105880.0,105870.0,0.19991092]
[1762741035806,0.21831424,105880.0,105870.0,0.011]
[1762741036008,0.20244424,105880.0,105870.0,0.011]
[1762741036636,0.2200498,105880.0,105870.0,0.011]
[1762741037590,0.28057698,105880.0,105870.0,0.011]
[1762741037996,0.30348698,105880.0,105870.0,0.011]
[1762741038307,0.28938154,105880.0,105870.0,0.011]
[1762741038882,0.31229154,105880.0,105870.0,0.011]
[1762741039278,0.26763436,105880.0,105870.0,0.011]
[1762741039482,0.26763436,105880.0,105870.0,0.005]
[1762741039934,0.27163436,105880.0,105870.0,0.005]
[1762741040110,0.18892877,105860.0,105850.0,0.00047236]
[1762741040323,0.18894662,105850.0,105840.0,0.05247941]
[1762741040494,0.23448218,105850.0,105840.0,0.24097147]
[1762741040702,0.01760556,105850.0,105840.0,0.24097147]
[1762741041017,0.01760556,105850.0,105840.0,0.24144388]
[1762741041978,0.01760556,105850.0,105840.0,0.99108733]
[1762741042104,0.01760556,105850.0,105840.0,0.29223624]
[1762741042512,0.01860556,105850.0,105840.0,0.29723624]
[1762741042972,0.01860556,105850.0,105840.0,0.31123624]
[1762741043747,0.01760556,105850.0,105840.0,0.30623624]
[1762741043980,0.01760556,105850.0,105840.0,0.25544388]
[1762741044180,0.01960556,105850.0,105840.0,0.27344388]
[1762741044598,0.01960556,105850.0,105840.0,0.35820634]
[1762741044794,0.01960556,105850.0,105840.0,0.30741398]
[1762741045182,0.01960556,105850.0,105840.0,0.81248887]
[1762741046204,0.01960556,105850.0,105840.0,0.86328123]
[1762741046402,0.01960556,105850.0,105840.0,1.01018123]
[1762741047956,0.01960556,105850.0,105840.0,0.97621113]
[1762741049073,0.00096327,105880.0,105870.0,0.18891092]
[1762741049242,0.00049116,105880.0,105870.0,0.69398581]
[1762741049653,0.00049116,105880.0,105870.0,0.69445808]
[1762741050197,0.01249116,105880.0,105870.0,0.69645808]
[1762741050754,0.00049116,105880.0,105870.0,0.69445808]
[1762741051102,0.00249116,105880.0,105870.0,0.71245808]
[1762741051522,0.00249116,105880.0,105870.0,0.71645808]
[1762741051831,0.00249116,105880.0,105870.0,0.71245808]
[1762741052034,0.00249116,105880.0,105870.0,0.72545808]
[1762741054048,0.00249116,105880.0,105870.0,0.22038319]
[1762741054221,0.00249116,105880.0,105870.0,0.72545808]
[1762741054385,0.00249116,105880.0,105870.0,0.22038319]
[1762741054785,0.00249116,105880.0,105870.0,0.72545808]
[1762741055188,0.00249116,105880.0,105870.0,0.87235808]
[1762741055407,0.00249116,105880.0,105870.0,0.36728319]
[1762741055725,0.00249116,105880.0,105870.0,1.71384565]
[1762741055868,0.00249116,105880.0,105870.0,1.74485666]
[1762741056274,0.00249116,105880.0,105870.0,1.76050356]
[1762741057111,0.00249116,105880.0,105870.0,1.76097583]
[1762741058124,0.00249116,105880.0,105870.0,1.76475552]
[1762741058354,0.00249116,105880.0,105870.0,0.90714878]
[1762741058772,0.00249116,105880.0,105870.0,0.87613777]
[1762741060170,0.00249116,105880.0,105870.0,0.94394791]
[1762741061159,0.00249116,105880.0,105870.0,0.79704791]
[1762741063419,0.00249116,105880.0,105870.0,1.63900775]
[1762741064161,0.00249116,105880.0,105870.0,1.57119761]
[1762741064563,0.00249116,105880.0,105870.0,0.72923777]
[1762741065709,0.00249116,105880.0,105870.0,0.72545808]
[1762741066084,0.00249116,105880.0,105870.0,0.77621698]
[1762741066989,0.00249116,105880.0,105870.0,0.92311698]
[1762741068412,0.19138424,105880.0,105870.0,0.2286589]
[1762741068639,0.30844521,105880.0,105870.0,0.21172547]
[1762741069017,0.33240521,105880.0,105870.0,0.21172547]
[1762741069712,0.11955213,105880.0,105870.0,0.40063639]
[1762741069918,0.00249116,105880.0,105870.0,0.40063639]
[1762741071708,0.19138424,105880.0,105870.0,0.40063639]
[1762741072344,0.19138424,105880.0,105870.0,0.45139529]
[1762741072675,0.00249116,105880.0,105870.0,0.45139529]
[1762741073058,0.19138424,105880.0,105870.0,0.30449529]
[1762741073259,0.23326372,105880.0,105870.0,0.30449529]
[1762741074022,0.24543372,105880.0,105870.0,0.30449529]
[1762741074670,0.20355424,105880.0,105870.0,0.30449529]
[1762741075396,0.20355424,105880.0,105870.0,0.11558437]
[1762741075819,0.20355424,105880.0,105870.0,0.30449529]
[1762741076211,0.20355424,105880.0,105870.0,0.27066982]
[1762741079036,0.20355424,105880.0,105870.0,0.0817589]
[1762741079489,0.24665072,105880.0,105870.0,0.0817589]
[1762741080283,0.24665072,105880.0,105870.0,0.27066982]
[1762741080493,0.20355424,105880.0,105870.0,0.27066982]
[1762741081229,0.01466116,105880.0,105870.0,0.27066982]
[1762741081474,0.00249116,105880.0,105870.0,0.27066982]
[1762741082029,0.00249116,105880.0,105870.0,0.30457745]
[1762741083072,0.19138424,105880.0,105870.0,0.11566653]
[1762741083310,0.20355424,105880.0,105870.0,0.11566653]
[1762741085371,0.19138424,105880.0,105870.0,0.30457745]
[1762741086653,0.19138424,105880.0,105870.0,0.40267918]
[1762741086868,0.00249116,105880.0,105870.0,1.88994565]
[1762741087082,0.00249116,105880.0,105870.0,1.92089909]
[1762741087310,0.00249116,105880.0,105870.0,1.95822806]
[1762741087522,0.00249116,105880.0,105870.0,1.11626822]
[1762741088071,0.00249116,105880.0,105870.0,0.03147227]
[1762741088277,0.19138424,105880.0,105870.0,0.2708249]
[1762741088623,0.24559173,105880.0,105870.0,0.08191398]
[1762741088987,0.20355424,105880.0,105870.0,0.2708249]
[1762741089341,0.20355424,105880.0,105870.0,0.08191398]
[1762741089743,0.24461424,105880.0,105870.0,0.08191398]
[1762741089954,0.18892877,105860.0,105850.0,0.06781014]
[1762741090132,0.75206366,105860.0,105850.0,0.05093676]
[1762741090339,1.15103847,105860.0,105850.0,0.0339611]
[1762741090959,1.18790518,105860.0,105850.0,0.0339611]
[1762741091506,1.18790518,105860.0,105850.0,0.0624108]
[1762741091849,0.69261761,105860.0,105850.0,0.0624108]
[1762741092052,0.69214586,105860.0,105850.0,0.0624108]
[1762741092273,0.64097105,105860.0,105850.0,0.0624108]
[1762741092477,1.3914809,105860.0,105850.0,0.0624108]
[1762741092804,0.64144279,105860.0,105850.0,0.0284497]
[1762741093653,0.63144279,105860.0,105850.0,0.0254497]
[1762741093855,0.65444279,105860.0,105850.0,0.0274497]
[1762741094054,0.7136176,105860.0,105850.0,0.0274497]
[1762741094769,0.71361761,105860.0,105850.0,0.0274497]
[1762741098883,1.46386164,105860.0,105850.0,0.0274497]
[1762741099082,1.46386164,105860.0,105850.0,0.002]
[1762741099253,1.46433339,105860.0,105850.0,0.002]
[1762741099802,0.51194662,105850.0,105840.0,0.0594108]
[1762741099966,1.10941907,105850.0,105840.0,0.0339611]
[1762741101033,1.13241907,105850.0,105840.0,0.0369611]
[1762741101376,0.62135886,105850.0,105840.0,0.0623727]
[1762741101576,1.13241907,105850.0,105840.0,0.0623727]
[1762741101984,0.62135886,105850.0,105840.0,0.0623727]
[1762741102186,0.63235886,105850.0,105840.0,0.0633727]
[1762741102410,1.14341907,105850.0,105840.0,0.0633727]
[1762741103896,1.14341907,105850.0,105840.0,0.004]
[1762741105089,1.15490907,105850.0,105840.0,0.004]
[1762741105690,0.64384886,105850.0,105840.0,0.004]
[1762741105896,1.15490907,105850.0,105840.0,0.004]
[1762741110250,1.15443732,105850.0,105840.0,0.004]
[1762741110657,1.15490907,105850.0,105840.0,0.004]
[1762741110957,1.15490906,105850.0,105840.0,0.004]
[1762741112421,1.17252116,105850.0,105840.0,0.004]
[1762741112994,1.17253516,105850.0,105840.0,0.004]
[1762741113901,0.66146095,105850.0,105840.0,0.004]
[1762741114044,1.11626498,105850.0,105840.0,0.004]
[1762741114238,1.11579324,105850.0,105840.0,0.004]
[1762741115072,1.57059727,105850.0,105840.0,0.004]
[1762741115447,1.60677955,105850.0,105840.0,0.004]
[1762741115656,1.6072513,105850.0,105840.0,0.004]
[1762741116254,2.15631255,105850.0,105840.0,0.004]
[1762741117198,2.0961223,105850.0,105840.0,0.004]
[1762741117410,1.9831043,105850.0,105840.0,0.004]